bitfinex/quotes_ETHUSD_20220109
["timestamp","ask_amount","ask_price","bid_price","bid_amount"]
[1641701857641,0.79949,3128.2,3127.6,0.79949]
[1641701858042,1.09949,3128.2,3127.7,0.00795793]
[1641701858243,0.3,3128.2,3127.7,0.00795793]
[1641701858491,11.3,3128.3,3127.7,0.00795793]
[1641701858685,10.0,3128.2,3127.5,0.00909477]
[1641701858885,9.0,3128.2,3127.5,0.00909477]
[1641701859086,7.0,3128.1,3127.5,0.00909477]
[1641701859286,7.3,3128.1,3127.5,0.00909477]
[1641701859487,0.79957,3127.9,3127.5,0.00909477]
[1641701859687,4.66562135,3128.3,3127.5,0.00909477]
[1641701859688,2.88241714,3128.1,3127.5,0.00909477]
[1641701859887,11.0,3128.1,3127.5,0.00909477]
[1641701860186,11.0,3128.1,3127.4,0.0096632]
[1641701860387,5.0,3128.2,3127.4,0.0096632]
[1641701860587,1.59936,3127.8,3127.5,1.24762541]
[1641701860791,2.69908,3128.3,3127.5,1.24762541]
[1641701860991,2.69908,3128.3,3127.6,0.00852635]
[1641701861588,2.69908,3128.3,3128.0,0.552171]
[1641701861789,0.79953,3128.2,3128.0,0.552171]
[1641701861989,0.79953,3128.2,3128.1,0.00568423]
[1641701862935,0.69953,3128.2,3128.1,0.00568423]
[1641701863136,0.69953,3128.2,3128.0,1.62269877]
[1641701863338,0.69953,3128.2,3128.1,0.00568423]
[1641701864537,0.99953,3128.2,3128.1,1.628383]
[1641701864737,0.69953,3128.2,3128.1,1.628383]
[1641701864937,0.69953,3128.2,3128.1,0.00568423]
[1641701866884,0.69953,3128.2,3128.0,0.00625266]
[1641701868988,0.99953,3128.2,3128.0,0.00625266]
[1641701869188,1.85368161,3128.2,3128.0,0.00625266]
[1641701869389,2.8234703,3128.1,3128.0,0.00625266]
[1641701869591,1.85368161,3128.2,3128.0,0.00625266]
[1641701869839,0.05452401,3128.1,3128.0,0.00625266]
[1641701870939,0.79974,3127.9,3127.7,0.00795793]
[1641701871139,1.09974,3127.9,3127.7,0.00795793]
[1641701871343,1.15426401,3127.9,3127.7,0.00795793]
[1641701871939,1.95402401,3127.9,3127.7,0.00795793]
[1641701873341,6.0,3127.8,3127.7,0.00795793]
[1641701874592,1.64130458,3127.8,3127.7,0.00795793]
[1641701874993,1.64130458,3127.8,3127.6,0.00852635]
[1641701875195,0.79974,3127.7,3127.6,0.00852635]
[1641701878536,1.09974,3127.7,3127.6,0.00852635]
[1641701878739,2.7,3127.6,3127.5,1.62269877]
[1641701878937,2.15423962,3127.7,3127.5,1.62269877]
[1641701879139,2.09974,3127.7,3127.5,1.62269877]
[1641701879742,2.09974,3127.7,3127.1,1.62269877]
[1641701880137,3.69952,3127.7,3127.2,0.00227369]
[1641701880340,2.85762,3127.6,3127.2,0.00227369]
[1641701880539,11.7472536,3127.6,3127.2,0.00227369]
[1641701880739,0.80004,3127.4,3127.2,0.00227369]
[1641701880991,0.458,3127.3,3126.9,1.57497246]
[1641701881192,1.59963,3127.2,3127.0,0.00113685]
[1641701884499,1.59963,3127.2,3126.9,0.00170527]
[1641701885947,1.59963,3127.2,3126.4,0.00454739]
[1641701886546,1.59963,3127.2,3126.3,0.00511581]
[1641701886747,1.59963,3127.2,3126.4,0.61877199]
[1641701887150,1.59963,3127.2,3126.5,0.00397897]
[1641701887349,0.79977,3127.2,3126.5,0.00397897]
[1641701887547,0.79977,3127.2,3126.5,0.80373897]
[1641701887747,0.79977,3127.2,3126.7,1.01110152]
[1641701888147,0.79977,3127.2,3126.8,0.0022737]
[1641701889796,1.59952,3127.4,3126.9,3.05]
[1641701890396,1.59952,3127.4,3127.0,1.62155229]
[1641701890899,0.79977,3127.2,3127.0,1.62155229]
[1641701892348,0.79977,3127.2,3127.1,1.62155229]
[1641701893143,0.79977,3127.2,3127.0,1.62155229]
[1641701894743,0.79977,3127.2,3127.1,1.62155229]
[1641701895345,0.79977,3127.2,3126.8,0.0022737]
[1641701895745,0.79977,3127.2,3126.7,0.00284212]
[1641701896189,0.79977,3127.2,3127.0,1.62530538]
[1641701897090,2.3995302,3127.2,3127.0,1.62530538]
[1641701897288,1.59971,3127.1,3127.0,1.62530538]
[1641701898690,1.59971,3127.1,3126.9,1.62530538]
[1641701899292,1.59971,3127.1,3127.0,1.62530538]
[1641701900246,1.56453132,3127.2,3127.0,1.62530538]
[1641701900643,1.59971,3127.1,3126.9,1.62530538]
[1641701900842,2.3997,3127.1,3126.9,1.62530538]
[1641701901043,3.3997,3127.1,3126.9,1.62530538]
[1641701901843,3.3997,3127.1,3126.7,0.00284212]
[1641701902044,2.4001741,3127.0,3126.7,0.00284212]
[1641701902346,2.4001741,3127.0,3126.2,0.00568424]
[1641701902347,1.10003,3126.9,3126.2,0.00568424]
[1641701902544,1.6002,3126.8,3126.2,0.00568424]
[1641701902746,4.0005,3126.8,3126.2,0.00568424]
[1641701902943,4.3005,3126.8,3126.0,0.00682108]
[1641701903143,0.80011,3126.2,3126.0,0.00682108]
[1641701903345,2.4003285,3126.3,3126.0,0.00682108]
[1641701903823,2.4003285,3126.3,3125.9,0.00738951]
[1641701904210,0.80011,3126.1,3125.9,0.00738951]
[1641701904806,0.80011,3126.1,3125.7,0.00852636]
[1641701905008,1.10011,3126.1,3125.7,0.00852636]
[1641701905208,0.3,3126.1,3125.7,0.00852636]
[1641701905411,0.3,3126.1,3125.6,0.00909478]
[1641701905607,1.25821,3126.0,3125.6,0.00909478]
[1641701905806,1.25821,3126.0,3124.5,3.7669]
[1641701905807,5.10078,3125.8,3125.4,4.06305435]
[1641701906109,0.8003746,3125.6,3125.4,4.06305435]
[1641701906406,1.7488746,3125.6,3125.4,4.06305435]
[1641701907006,1.7488746,3125.6,3124.8,0.55843243]
[1641701907263,1.7488746,3125.6,3124.6,1.2472]
[1641701907264,0.80034,3125.2,3124.6,1.2472]
[1641701907447,0.80034,3125.2,3124.9,0.00397896]
[1641701907448,1.10034,3125.2,3124.9,0.00397896]
[1641701907644,1.10034,3125.2,3124.7,0.00511581]
[1641701907845,0.3,3125.2,3124.6,0.00568423]
[1641701908048,1.10033,3125.5,3124.6,0.00568423]
[1641701908546,1.60075,3125.1,3124.9,0.69240528]
[1641701908947,1.90075,3125.1,3125.0,2.90341054]
[1641701909548,1.60075,3125.1,3125.0,2.90341054]
[1641701909747,0.80031,3125.2,3125.0,2.90341054]
[1641701909949,1.60055,3125.4,3125.1,0.50867498]
[1641701909950,0.8002,3125.4,3125.1,0.50867498]
[1641701910150,3.9087,3126.0,3125.1,0.5115171]
[1641701910348,3.9087,3126.0,3125.2,0.00227369]
[1641701910349,1.00170527,3125.9,3125.2,0.00227369]
[1641701910551,0.00113685,3125.8,3125.2,0.00227369]
[1641701911600,0.80012,3125.7,3125.6,1.61613025]
[1641701911897,0.00113685,3125.8,3125.6,2.75079778]
[1641701912995,0.00113685,3125.8,3125.4,0.80002]
[1641701913598,0.00113685,3125.8,3125.6,0.3]
[1641701913995,0.00113685,3125.8,3125.7,6.66891673]
[1641701914762,0.00113685,3125.8,3125.3,1.59999]
[1641701915150,0.80011,3125.7,3125.4,0.00113685]
[1641701915349,0.00113685,3125.8,3125.4,0.00113685]
[1641701916150,0.00113685,3125.8,3125.3,0.00170527]
[1641701916751,0.80012,3125.7,3125.3,0.00170527]
[1641701917552,0.80012,3125.7,3125.3,0.80178067]
[1641701917952,0.80012,3125.7,3125.4,0.00113685]
[1641701919195,0.80012,3125.7,3125.3,0.00170527]
[1641701919594,0.00113685,3125.8,3125.3,0.00170527]
[1641701919796,0.00113685,3125.8,3125.3,0.80177527]
[1641701919996,0.00113685,3125.8,3125.3,0.80007]
[1641701920196,0.00113685,3125.8,3125.4,0.00113685]
[1641701920899,4.0,3126.5,3125.5,3.4]
[1641701921298,0.30341054,3126.4,3125.6,0.00113685]
[1641701921597,0.00284212,3126.3,3125.6,0.00113685]
[1641701921796,0.80007,3125.9,3125.6,0.00113685]
[1641701922643,0.80007,3125.9,3125.4,0.0022737]
[1641701922644,1.10007,3125.9,3125.4,0.0022737]
[1641701922947,0.3,3125.9,3125.2,0.00341054]
[1641701923145,0.80017,3125.6,3125.2,0.00341054]
[1641701924146,0.80013,3125.7,3125.2,0.00341054]
[1641701924346,1.3,3126.1,3125.2,0.00341054]
[1641701924546,0.00227369,3126.2,3125.2,0.00341054]
[1641701924745,0.00113685,3126.0,3125.2,0.00341054]
[1641701924947,1.60032,3125.9,3125.2,0.00341054]
[1641701925147,0.80017,3125.7,3125.2,0.00341054]
[1641701927396,0.80017,3125.7,3125.2,2.14213027]
[1641701927696,0.80017,3125.7,3125.3,0.00284212]
[1641701930045,0.80017,3125.7,3125.2,0.00341054]
[1641701932746,0.80017,3125.7,3125.2,2.15398556]
[1641701933149,0.80017,3125.7,3125.3,0.00284212]
[1641701933351,0.80008,3125.9,3125.3,0.00284212]
[1641701933603,1.10008,3125.9,3125.3,0.00284212]
[1641701933801,1.10008,3125.9,3125.8,5.12188325]
[1641701933802,0.80008,3125.9,3125.8,5.12188325]
[1641701934003,1.60016,3126.2,3125.8,7.52828608]
[1641701934402,0.00170527,3126.1,3125.8,7.52828608]
[1641701934804,0.00113685,3126.0,3125.9,0.79994]
[1641701935003,0.00113685,3126.0,3125.9,6.67706709]
[1641701935904,0.00113685,3126.0,3125.9,3.17706709]
[1641701936105,0.79996,3126.3,3126.0,3.1]
[1641701936305,0.79996,3126.3,3125.9,2.24952016]
[1641701936306,1.09996,3126.3,3125.9,2.24952016]
[1641701936505,1.60024,3126.1,3125.8,0.62188325]
[1641701936710,0.3,3126.2,3125.6,1.1651]
[1641701936906,7.4980863,3126.4,3125.9,0.00170527]
[1641701937106,7.3,3126.4,3125.7,0.00284212]
[1641701937546,0.80012,3126.0,3125.7,0.00284212]
[1641701938146,0.80012,3126.0,3125.4,0.54960686]
[1641701938348,0.80012,3126.0,3125.5,0.00397896]
[1641701938950,1.10012,3126.0,3125.5,0.00397896]
[1641701939146,0.80013,3125.8,3125.3,0.00511581]
[1641701940550,1.60024,3126.1,3125.4,4.0]
[1641701940551,1.06513764,3126.1,3125.4,4.0]
[1641701940996,1.06513764,3126.1,3125.5,1.19594]
[1641701941398,1.06513764,3126.1,3125.6,0.00341054]
[1641701941796,0.80013,3125.8,3125.6,0.00341054]
[1641701941999,0.80013,3125.8,3125.5,0.00397896]
[1641701948495,0.80013,3125.8,3125.4,0.00454739]
[1641701950197,0.80013,3125.8,3125.4,4.06760174]
[1641701950598,0.80013,3125.8,3125.5,0.00397896]
[1641701953754,44.35326815,3126.8,3125.6,3.2]
[1641701953952,2.70042,3126.5,3125.6,3.2]
[1641701954153,7.1354682,3126.4,3125.7,0.00284212]
[1641701954552,0.80013,3126.2,3125.7,0.00284212]
[1641701954754,7.1354682,3126.4,3125.7,0.00284212]
[1641701954953,1.60027,3125.9,3125.7,0.00284212]
[1641701957207,1.60027,3125.9,3125.6,0.00341054]
[1641701957606,1.60027,3125.9,3125.6,4.06646489]
[1641701958107,1.60027,3125.9,3125.7,0.00284212]
[1641701960165,1.60027,3125.9,3125.6,4.06646489]
[1641701960565,1.60027,3125.9,3125.7,0.00284212]
[1641701961164,2.60027,3125.9,3125.7,0.00284212]
[1641701961366,1.60027,3125.9,3125.7,0.00284212]
[1641701961664,1.0,3125.8,3125.7,0.00284212]
[1641701961864,2.60027,3125.9,3125.7,0.00284212]
[1641701962064,2.60027,3125.9,3125.5,0.00397896]
[1641701962065,1.0,3125.8,3125.5,0.00397896]
[1641701962365,0.8002,3125.7,3125.5,0.00397896]
[1641701964410,0.8002,3125.7,3125.5,4.06703331]
[1641701964806,0.8002,3125.7,3125.6,0.00341054]
[1641701966208,0.8002,3125.7,3125.5,0.00397896]
[1641701966408,0.8002,3125.7,3125.6,4.06305435]
[1641701966609,1.60039,3125.8,3125.7,2.55]
[1641701967010,1.60039,3125.8,3125.7,2.55284212]
[1641701967648,1.60039,3125.8,3125.7,0.00284212]
[1641701968848,0.64025173,3126.2,3125.7,0.00284212]
[1641701969050,0.3,3126.2,3125.7,0.00284212]
[1641701969649,1.90025,3126.2,3125.7,0.00284212]
[1641701969851,1.60039,3125.8,3125.7,0.00284212]
[1641701970453,1.60039,3125.8,3125.7,2.30284212]
[1641701970650,0.8354682,3126.4,3125.7,3.94449368]
[1641701970856,1.8,3126.8,3125.9,0.7999874]
[1641701971101,1.60001,3126.3,3125.9,0.7999874]
[1641701971300,1.60001,3126.3,3126.0,0.00113684]
[1641701972601,0.00113685,3126.4,3126.0,0.00113684]
[1641701973002,0.00113685,3126.4,3126.0,0.80107684]
[1641701973202,0.00113685,3126.4,3126.0,0.79994]
[1641701973407,0.00113685,3126.4,3126.1,1.1294]
[1641701974102,0.00113685,3126.4,3126.2,4.06305435]
[1641701975452,0.00113685,3126.4,3126.3,4.06305435]
[1641701976056,0.00113685,3126.4,3126.2,1.59955]
[1641701976057,0.00113685,3126.4,3126.2,5.66260435]
[1641701976656,0.00113685,3126.4,3126.2,4.06305435]
[1641701976855,0.00113685,3126.4,3126.1,2.7289435]
[1641701976856,0.80104685,3126.4,3126.1,2.7289435]
[1641701977254,0.00113685,3126.4,3126.1,1.5995435]
[1641701977855,0.00113685,3126.4,3126.1,3.1991731]
[1641701978055,0.00113685,3126.4,3126.2,1.1557]
[1641701979198,0.00113685,3126.4,3126.1,3.9990531]
[1641701979402,0.00113685,3126.4,3126.1,2.3994235]
[1641701979599,0.00113685,3126.4,3126.2,1.1661]
[1641701980599,0.00113685,3126.4,3126.1,2.3994235]
[1641701980801,0.00113685,3126.4,3126.1,2.3494235]
[1641701981203,0.7658392,3126.8,3126.1,2.3494235]
[1641701981501,0.00170527,3126.7,3126.2,0.00113685]
[1641701981899,0.7658392,3126.8,3126.2,0.00113685]
[1641701981900,0.00113685,3126.6,3126.2,0.00113685]
[1641701982850,0.7999,3126.5,3126.2,0.00113685]
[1641701983250,0.7999,3126.5,3126.2,0.80099885]
[1641701984053,0.00113685,3126.6,3126.3,0.79985]
[1641701984251,0.00113685,3126.6,3126.3,1.5996936]
[1641701985053,0.80099685,3126.6,3126.2,0.00113685]
[1641701985254,0.8000993,3126.5,3126.2,0.00113685]
[1641701985454,1.60028,3126.4,3126.1,0.00170527]
[1641701985654,2.93817672,3126.3,3125.9,0.00284212]
[1641701985856,7.3,3126.3,3125.9,0.00284212]
[1641701986098,2.60032,3126.2,3126.0,1.63012171]
[1641701986400,2.60032,3126.2,3126.1,0.00170527]
[1641701986596,4.50071,3126.2,3126.1,0.00170527]
[1641701986803,5.3008695,3126.2,3126.1,0.00170527]
[1641701987800,0.8002,3126.1,3125.9,0.00284212]
[1641701988098,2.4006,3126.1,3125.9,0.00284212]
[1641701989299,2.4006,3126.1,3125.8,0.00341054]
[1641701989501,1.60038,3126.0,3125.8,0.00341054]
[1641701989951,2.60038,3126.0,3125.8,0.00341054]
[1641701990153,2.60038,3126.0,3125.8,1.63353225]
[1641701990552,2.60038,3126.0,3125.9,0.00284212]
[1641701991157,1.80019,3126.0,3125.9,0.00284212]
[1641701991658,1.80019,3126.0,3125.8,0.00341054]
[1641701991854,5.80019,3126.0,3125.8,0.00341054]
[1641701992055,5.80019,3126.0,3125.8,1.63353225]
[1641701992457,6.60038,3126.0,3125.9,0.00284212]
[1641701992657,5.80019,3126.0,3125.9,0.00284212]
[1641701993356,1.80019,3126.0,3125.9,0.00284212]
[1641701994001,2.10019,3126.0,3125.9,1.63296383]
[1641701994205,1.10019,3126.0,3125.9,1.63296383]
[1641701994401,2.10019,3126.0,3125.9,1.63296383]
[1641701994602,2.10019,3126.0,3125.9,0.00284212]
[1641701995001,2.10019,3126.0,3125.8,0.00341054]
[1641701995201,2.90038,3126.0,3125.8,0.00341054]
[1641701998956,2.90038,3126.0,3125.6,0.00454739]
[1641701999153,0.8002,3125.8,3125.6,0.00454739]
[1641701999356,0.8002,3125.8,3125.6,1.6346691]
[1641701999755,0.8002,3125.8,3125.7,0.00397897]
[1641702000554,2.4006948,3125.8,3125.7,0.00397897]
[1641702000754,2.4006948,3125.8,3125.6,0.00454739]
[1641702001000,3.7006948,3125.8,3125.6,0.00454739]
[1641702001600,4.8010148,3125.8,3125.5,0.00511581]
[1641702001801,0.8003,3125.7,3125.5,0.00511581]
[1641702002006,1.6005916,3125.7,3125.5,0.00511581]
[1641702002203,2.6005916,3125.7,3125.5,0.00511581]
[1641702002403,2.6005916,3125.7,3125.4,0.00568424]
[1641702002603,2.60061,3125.7,3125.4,0.00568424]
[1641702002803,0.3,3125.6,3125.4,0.00568424]
[1641702003203,1.3,3125.6,3125.4,0.00568424]
[1641702003405,0.3,3125.6,3125.4,0.00568424]
[1641702003804,1.9006248,3125.6,3125.4,0.00568424]
[1641702004005,1.60078,3125.3,3124.8,3.9905]
[1641702004205,4.05,3125.5,3124.3,5.30435435]
[1641702004206,0.80048,3125.0,3124.3,5.30435435]
[1641702004404,0.7257,3125.0,3124.9,0.00284211]
[1641702004607,1.0257,3125.0,3124.9,0.00284211]
[1641702005247,0.9757,3125.0,3124.9,0.00284211]
[1641702005647,2.77619,3125.0,3124.9,0.00284211]
[1641702005849,2.57671,3125.0,3124.9,0.00284211]
[1641702006149,3.57671,3125.0,3124.9,0.00284211]
[1641702008048,4.41250069,3125.0,3124.9,0.00284211]
[1641702008501,1.60112,3124.7,3124.3,1.2413]
[1641702008702,2.4016784,3124.7,3124.4,0.00284212]
[1641702008903,0.80056,3124.6,3124.4,0.00284212]
[1641702009304,0.80056,3124.6,3124.2,0.00397897]
[1641702009305,1.80056,3124.6,3124.2,0.00397897]
[1641702009906,0.80055,3124.5,3124.2,0.00397897]
[1641702015062,0.83579069,3125.0,3124.6,0.6623225]
[1641702015257,36.13819997,3125.5,3124.6,0.6623225]
[1641702015258,1.0,3125.9,3124.7,2.32841679]
[1641702015456,1.0,3125.9,3124.7,2.32955364]
[1641702015457,1.3,3125.9,3124.7,2.32955364]
[1641702015657,0.00284211,3125.4,3124.7,2.32955364]
[1641702016101,0.00227369,3125.3,3124.7,2.32955364]
[1641702016501,0.00170527,3125.2,3124.7,2.32955364]
[1641702016800,0.80141684,3125.1,3124.7,2.32955364]
[1641702017302,0.80028,3125.1,3124.7,2.32955364]
[1641702019855,1.0,3125.6,3124.8,0.8002119]
[1641702019856,0.80022,3125.3,3124.8,0.8002119]
[1641702020054,0.80022,3125.3,3124.9,2.22225002]
[1641702020261,0.00170527,3125.2,3124.9,2.22225002]
[1641702020656,0.00113684,3125.1,3124.9,3.02242432]
[1641702020860,3.684e-05,3125.1,3125.0,7.71981581]
[1641702021055,1.60025,3126.6,3125.0,18.60841581]
[1641702021056,0.00170527,3125.2,3125.0,18.60841581]
[1641702021258,1.0,3126.6,3126.4,1.63397045]
[1641702021454,1.0,3126.6,3125.2,13.6983]
[1641702021455,1.59998,3126.5,3125.2,13.6983]
[1641702021655,1.6062695,3126.5,3125.9,0.9924]
[1641702021858,1.6062695,3126.5,3126.0,2.12638171]
[1641702022056,0.80001,3126.3,3125.9,0.9924]
[1641702022456,0.00458423,3126.2,3125.9,0.9924]
[1641702022860,0.00401581,3126.1,3125.4,2.76804102]
[1641702023259,0.80011,3125.7,3125.4,2.76804102]
[1641702023503,0.80011,3125.7,3125.4,1.61924102]
[1641702023703,0.00117369,3125.6,3125.4,1.61924102]
[1641702024103,1.60034,3126.2,3125.3,2.08890198]
[1641702024104,0.00287896,3125.9,3125.3,2.08890198]
[1641702024305,0.00287896,3125.9,3125.2,0.4979652]
[1641702024505,0.00231054,3125.8,3125.1,4.0419152]
[1641702024705,0.80017,3125.5,3125.1,3.7419152]
[1641702025015,0.80017,3125.5,3125.2,0.0011]
[1641702026006,0.80017,3125.5,3125.1,0.00166843]
[1641702028955,0.80017,3125.5,3125.1,1.62090945]
[1641702029356,0.80017,3125.5,3125.2,0.0011]
[1641702029556,0.80017,3125.5,3125.2,1.62034102]
[1641702030157,0.80017,3125.5,3125.2,0.0011]
[1641702031003,0.80017,3125.5,3125.2,1.62034102]
[1641702031604,0.80017,3125.5,3125.2,0.0011]
[1641702032301,1.10017,3125.5,3125.2,0.0011]
[1641702032700,2.10017,3125.5,3125.2,0.0011]
[1641702033702,2.10017,3125.5,3125.1,0.00166843]
[1641702033902,0.80024,3125.3,3125.1,0.00166843]
[1641702036255,0.80017,3125.5,3125.2,4.31924102]
[1641702036454,0.00174211,3125.7,3125.2,4.31924102]
[1641702036854,0.00117369,3125.6,3125.2,4.31924102]
[1641702037253,0.00287896,3125.9,3125.2,4.31924102]
[1641702037456,0.80012,3125.7,3125.3,1.61924102]
[1641702037854,0.00117369,3125.6,3125.3,1.61924102]
[1641702038903,0.80132369,3125.6,3125.3,1.61924102]
[1641702042452,0.80132369,3125.6,3125.3,2.41934612]
[1641702042653,0.00117369,3125.6,3125.3,4.57898602]
[1641702042857,0.00117369,3125.6,3125.5,7.46638335]
[1641702043053,0.00117369,3125.6,3125.5,9.73036192]
[1641702043752,0.00117369,3125.6,3125.5,10.92026192]
[1641702043953,0.79992,3126.5,3125.6,5.45]
[1641702044153,1.59983,3126.8,3125.7,2.53539332]
[1641702044355,0.00454739,3126.4,3125.7,2.83539332]
[1641702044754,0.00397897,3126.3,3125.7,2.83539332]
[1641702045154,0.00341054,3126.2,3125.7,2.83539332]
[1641702045354,0.00341054,3126.2,3126.0,0.79988]
[1641702045554,0.79987,3126.7,3126.1,4.60849764]
[1641702046004,0.80612266,3126.7,3126.1,4.60849764]
[1641702046405,0.00625266,3126.7,3126.1,4.60849764]
[1641702046606,0.80612266,3126.7,3126.1,5.40836764]
[1641702046805,0.80612266,3126.7,3126.1,4.60849764]
[1641702047005,0.80612266,3126.7,3126.1,2.20849764]
[1641702047706,0.80612266,3126.7,3126.1,3.00838124]
[1641702047908,0.80612266,3126.7,3126.1,2.89989764]
[1641702048309,0.00625266,3126.7,3126.5,0.66961927]
[1641702049509,0.00625266,3126.7,3126.6,2.35]
[1641702049758,0.00625266,3126.7,3126.6,4.44768334]
[1641702052558,0.00625266,3126.7,3126.6,7.84768334]
[1641702052758,0.00625266,3126.7,3126.6,9.06918334]
[1641702053358,5.266e-05,3126.7,3126.6,9.06918334]
[1641702053610,5.266e-05,3126.7,3126.6,10.69609225]
[1641702054008,5.266e-05,3126.7,3126.6,10.99609225]
[1641702054204,5.266e-05,3126.7,3126.6,29.62609225]
[1641702054809,5.266e-05,3126.7,3126.6,28.45718334]
[1641702055305,0.49078086,3127.7,3126.7,5.45]
[1641702055508,6.16,3128.6,3128.2,0.50816345]
[1641702055708,6.16,3128.6,3128.2,1.0794]
[1641702056906,0.79941,3128.5,3128.2,1.0794]
[1641702057106,0.79941,3128.5,3128.2,4.2794]
[1641702057356,0.0096632,3128.4,3128.2,4.2794]
[1641702057758,3.55909477,3128.3,3128.2,3.2]
[1641702057957,0.80859477,3128.3,3128.2,3.2]
[1641702058156,2.10859477,3128.3,3128.2,3.2]
[1641702058360,1.10859477,3128.3,3128.2,3.2]
[1641702059758,0.80859477,3128.3,3128.2,3.2]
[1641702059959,2.10859477,3128.3,3128.2,3.2]
[1641702060359,1.80859477,3128.3,3128.2,3.2]
[1641702060557,0.80859477,3128.3,3128.2,3.2]
[1641702060758,1.80859477,3128.3,3128.2,3.2]
[1641702061038,1.10859477,3128.3,3128.2,3.2]
[1641702061237,2.10859477,3128.3,3128.2,3.2]
[1641702061537,1.80859477,3128.3,3128.2,3.2]
[1641702061939,1.77290066,3128.4,3128.2,3.2]
[1641702062339,0.77290066,3128.4,3128.2,3.2]
[1641702062542,1.07290066,3128.4,3128.2,3.2]
[1641702062941,0.7995,3128.3,3128.2,3.2]
[1641702068164,0.79941,3128.5,3128.2,3.2]
[1641702068367,6.16,3128.6,3128.4,6.0533896]
[1641702068611,0.00113685,3128.5,3128.4,6.0533896]
[1641702069614,0.00113685,3128.5,3128.4,0.6033896]
[1641702069811,1.8030847,3128.6,3128.2,3.2]
[1641702070310,0.3,3128.6,3128.3,0.00113685]
[1641702070511,0.79947,3128.5,3128.3,0.00113685]
[1641702071111,1.09947,3128.5,3128.3,0.00113685]
[1641702071511,0.79947,3128.5,3128.3,0.00113685]
[1641702071911,0.79936,3128.7,3128.3,0.00113685]
[1641702072112,1.09936,3128.7,3128.3,0.00113685]
[1641702072955,0.79936,3128.7,3128.3,0.00113685]
[1641702074456,0.8015937,3128.9,3128.3,0.00113685]
[1641702074859,0.00170527,3128.8,3128.3,0.00113685]
[1641702075157,0.00113685,3128.7,3128.3,0.00113685]
[1641702075557,0.00170527,3128.8,3128.3,0.00113685]
[1641702075759,1.59887,3128.7,3128.3,0.00113685]
[1641702076007,1.90000685,3128.7,3128.3,0.00113685]
[1641702076207,1.60000685,3128.7,3128.3,0.00113685]
[1641702076409,0.00113685,3128.7,3128.3,0.00113685]
[1641702079611,0.00113685,3128.7,3128.3,1.61478636]
[1641702079857,0.00113685,3128.7,3128.3,2.41407006]
[1641702080458,0.00113685,3128.7,3128.3,0.80042055]
[1641702081960,0.00113685,3128.7,3128.3,1.59970055]
[1641702082563,0.00113685,3128.7,3128.3,4.01262006]
[1641702082861,0.00113685,3128.7,3128.3,5.26940081]
[1641702083260,1.27307524,3129.0,3128.5,4.05]
[1641702083708,1.27307524,3129.0,3128.4,1.61535478]
[1641702083709,0.00113685,3128.9,3128.4,1.61535478]
[1641702083908,0.79934,3128.7,3128.5,1.61364951]
[1641702084108,0.79934,3128.7,3128.5,1.61478636]
[1641702084710,0.00113685,3128.9,3128.5,1.61478636]
[1641702085609,3.0239265,3129.4,3129.3,3.88291209]
[1641702085810,0.79929,3128.9,3128.6,1.61364951]
[1641702086010,0.79929,3128.9,3128.6,1.61535478]
[1641702086210,0.79929,3128.9,3128.7,0.00113685]
[1641702086410,0.00170527,3129.2,3128.7,0.89493685]
[1641702086809,0.00113684,3129.1,3128.7,3.34057349]
[1641702087011,0.00113684,3129.1,3128.7,5.254223]
[1641702087262,0.00341054,3129.5,3129.3,0.65335178]
[1641702087656,0.00284211,3129.4,3129.3,0.65335178]
[1641702090258,0.00284211,3129.4,3129.3,2.65335178]
[1641702092807,0.00284211,3129.4,3129.3,0.65335178]
[1641702093407,1.59826,3129.8,3129.3,0.65335178]
[1641702093610,0.79911,3129.5,3129.3,0.65335178]
[1641702097356,0.79911,3129.5,3129.3,3.85335178]
[1641702100915,1.60001527,3129.7,3129.3,3.85335178]
[1641702100916,1.59841,3129.9,3129.4,1.59682366]
[1641702101109,1.0,3129.8,3129.4,1.59852893]
[1641702101311,1.59841,3129.9,3129.5,0.00113684]
[1641702101709,1.59831,3129.7,3129.5,0.00113684]
[1641702101909,1.59831,3129.7,3129.4,0.00170527]
[1641702102560,0.76369474,3129.8,3129.4,0.00170527]
[1641702102762,1.0,3129.9,3129.4,0.00170527]
[1641702103161,1.3,3129.9,3129.4,0.00170527]
[1641702103567,1.5982077,3130.3,3129.4,0.00170527]
[1641702103568,7.74703563,3130.6,3129.4,3.25382212]
[1641702103763,4.16147563,3130.6,3129.4,3.25382212]
[1641702103966,4.16147563,3130.6,3129.7,0.79895]
[1641702103967,0.00113685,3129.9,3129.7,0.79895]
[1641702104565,0.00113685,3129.9,3129.8,1.5978746]
[1641702105765,0.00113685,3129.9,3129.8,6.96440547]
[1641702106208,0.00113685,3129.9,3129.8,3.86440547]
[1641702106610,0.00113685,3129.9,3129.8,1.5978746]
[1641702106811,0.00113685,3129.9,3129.5,1.59797912]
[1641702107611,0.00113685,3129.9,3129.5,0.00113684]
[1641702107811,0.7993,3129.8,3129.5,0.00113684]
[1641702108011,0.79911,3129.7,3129.4,0.00170527]
[1641702108411,1.79911,3129.7,3129.4,0.00170527]
[1641702111168,2.59836,3129.7,3129.4,0.00170527]
[1641702111565,0.79927,3129.6,3129.4,0.00170527]
[1641702112167,1.59854,3129.6,3129.4,0.00170527]
[1641702112669,3.20958425,3130.0,3129.4,0.00170527]
[1641702112670,1.83494292,3132.1,3131.8,1.77578368]
[1641702112868,0.46776151,3132.4,3131.9,0.5471138]
[1641702112869,3.5,3132.0,3131.9,0.5471138]
[1641702113068,6.94,3133.0,3131.9,2.44671534]
[1641702113269,0.79846,3132.6,3131.9,2.44671534]
[1641702113504,0.01364216,3132.3,3131.8,21.62228354]
[1641702113707,0.01364216,3132.3,3131.9,2.44671534]
[1641702113906,5.0,3132.9,3132.2,0.0120868]
[1641702114104,13.1,3133.0,3132.5,5.724]
[1641702114304,13.1,3133.0,3132.9,0.51172934]
[1641702114509,0.03,3133.0,3132.9,0.458]
[1641702114707,0.03,3133.0,3132.9,0.46762104]
[1641702114908,0.03,3133.0,3132.9,4.01762104]
[1641702115306,0.12803,3133.9,3132.9,6.76433638]
[1641702115511,0.12803,3133.9,3132.9,8.63833638]
[1641702115709,0.12803,3133.9,3133.1,1.59596]
[1641702115907,0.12803,3133.9,3133.2,0.458]
[1641702116209,0.12803,3133.9,3133.3,2.15959257]
[1641702116407,0.12803,3133.9,3133.4,3.758]